Cogmind - Beta 13 @@@ ROGUE MODE // 2024.04.02 @ 21:19:02 Player: CogEmotions! Result: Destroyed by G-34 Mercenary with Small Laser Performance ------------- Evolutions (0) 0 Regions Visited (1) 200 Robots Destroyed (14) 70 Value Destroyed (195) 195 Prototype IDs (0) 0 Alien Tech Used (0) 0 Bonus (0) 0 TOTAL SCORE: 465 Bonus ------- None Cogmind --------- Core Integrity 0/250 Matter 272/300 Energy 100/100 System Corruption 0% Temperature Cool (7) Movement Treading (160) Location -10/Materials Parts ------- > --- POWER (1) -------- (None) > --- PROPULSION (2) --- Light Treads Light Treads > --- UTILITY (2) ------ Large Storage Unit > --- WEAPON (2) ------- Light Cannon > --- INVENTORY (15) --- Light Treads Light Treads Small Storage Unit Peak State ------------ > --- POWER ------------ Light Ion Engine > --- PROPULSION ------- Light Treads Light Treads > --- UTILITY ---------- Small Storage Unit Small Battery > --- WEAPON ----------- EM Pulse Gun EM Pulse Gun > --- INVENTORY -------- (None) [Rating: 7] Favorites ----------- Power Light Ion Engine Engine Light Ion Engine Propulsion Light Treads Treads Light Treads Utility Small Storage Unit Storage Small Storage Unit Weapon EM Pulse Gun Energy Gun EM Pulse Gun Ballistic Gun Light Assault Rifle Ballistic Cannon Light Cannon Build | -11 -10 ------- Run | Yrd Mat Slots Evolved . | . . Power . | . . Propulsion . | . . Utility . | . . Weapon . | . . Parts Attached 14 | 6 8 Power 1 | 1 . Engine 1 | 1 . Core . | . . Reactor . | . . Propulsion 5 | 2 3 Treads 5 | 2 3 Leg . | . . Wheel . | . . Hover . | . . Flight . | . . Utility 3 | 1 2 Device . | . . Storage 3 | 1 2 Processor . | . . Hackware . | . . Protection . | . . Artifact . | . . Weapon 5 | 2 3 Energy Gun 3 | 2 1 Energy Cannon . | . . Ballistic Gun 1 | . 1 Ballistic Cannon 1 | . 1 Launcher . | . . Special Weapon . | . . Impact Weapon . | . . Slashing Weapon . | . . Piercing Weapon . | . . Special Melee Weapon . | . . Unidentified Prototypes . | . . Parts Lost 7 | . 7 Power 1 | . 1 Propulsion 2 | . 2 Utility 1 | . 1 Weapon 3 | . 3 Highest Loss Streak 5 | . 5 To Critical Strikes . | . . Average Slot Usage (%) 87 | . 87 Engine 13 | . 13 Treads 26 | . 26 Storage 26 | . 26 Energy Gun 13 | . 13 Ballistic Gun 5 | . 5 Naked Turns . | . . Heaviest Build 25 | 12 25 Greatest Support 40 | 40 40 Greatest Overweight (x) 8 | . 8 Average Overweight (x) . | . . Largest Inventory Capacity 15 | 8 15 Average Capacity 8 | 7 9 Most Carried 5 | 5 5 Average Carried 1 | . 1 Final Capacity 15 | 8 15 Final Carried 3 | . 3 Class Distribution -------------------- 100% | Mutant Dominant Class ---------------- Mutant | -10/Materials Resources | -11 -10 ----------- Run | Yrd Mat Matter Collected 309 | 243 66 Remotely . | . . Salvage Created 371 | . 371 Parts 27 | . 27 Haulers Intercepted 1 | . 1 Recyclers Shooed . | . . Parts Field Recycled . | . . Retrieved Matter . | . . Parts Self-Destructed . | . . Prevented . | . . Kills | -11 -10 ------- Run | Yrd Mat Combat Hostiles Destroyed 8 | . 8 Guns 6 | . 6 AOE 2 | . 2 Classes Destroyed 7 | . 7 Worker 1 | . 1 Hauler 1 | . 1 Recycler 2 | . 2 Operator 1 | . 1 Watcher 1 | . 1 Swarmer 6 | . 6 Grunt 2 | . 2 Best Kill Streak 6 | . 6 Combat Bots Only 3 | . 3 Max Kills in Single Turn 4 | . 4 Gunslinging 1 | . 1 Exploded 1 | . 1 Melee . | . . Uniques/NPCs Destroyed . | . . Combat | -11 -10 -------- Run | Yrd Mat Hostile Shots Fired 92 | . 92 Missed 27 | . 27 Damage Taken 1000 | . 1000 Core 253 | . 253 Absorbed by Shields . | . . Regen/Repaired (Parts) 51 | . 51 Core Remaining (%) 100 | 100 . Volleys Fired 33 | . 33 Largest 2 | . 2 Hottest 80 | . 80 Shots Fired 48 | . 48 Gun 45 | . 45 Cannon 3 | . 3 Launcher . | . . Special . | . . Kinetic 16 | . 16 Thermal . | . . Explosive . | . . Electromagnetic 32 | . 32 Robot Hit Streak 10 | . 10 Robot Miss Streak 2 | . 2 Penetration Max . | . . Secondary Targets 1 | . 1 Max Gunslinging Chain 1 | . 1 Shots Hit Robots 35 | . 35 Core Hits 20 | . 20 Critical Kills . | . . Critical Parts Destroyed . | . . Critical Strikes . | . . Melee Attacks . | . . Impact . | . . Slashing . | . . Piercing . | . . Sneak Attacks . | . . Combat Hostiles . | . . Follow-up Attacks . | . . Damage Inflicted 845 | . 845 Guns 368 | . 368 Cannons 51 | . 51 Explosions 424 | . 424 Melee . | . . Ramming 2 | . 2 Kinetic 139 | . 139 Thermal 116 | . 116 Explosive 308 | . 308 Electromagnetic 280 | . 280 Impact . | . . Slashing . | . . Piercing . | . . Highest Corruption . | . . Average Corruption . | . . Corruption Purged . | . . Corruption Blocked . | . . Overload Shots . | . . Overflow Damage 65 | . 65 Projectiles . | . . Explosions 65 | . 65 Melee . | . . Knockbacks 1 | . 1 Impact . | . . Kinetic 1 | . 1 Secondary . | . . Self-Inflicted Damage 209 | . 209 Shots 3 | . 3 Rammed 1 | . 1 Targets Rammed 1 | . 1 Kicked . | . . Crushed . | . . Highest Temperature 234 | . 234 Average Temperature 74 | . 74 Received Heat Transfer 384 | . 384 Effects 1 | . 1 Energy Bleed 1 | . 1 Siege Activations . | . . Robots Corrupted . | . . Combat Hostiles . | . . Parts Fried 1 | . 1 Impact Corruptions . | . . Robots Melted . | . . Combat Hostiles . | . . Parts Melted . | . . Heat Transferred 200 | . 200 Parts Sabotaged . | . . Parts Stolen . | . . Parts Stripped . | . . Power Chain Reactions 2 | . 2 Alert | -11 -10 ------- Run | Yrd Mat Peak Influence 291 | . 291 Initial . | . . Average 117 | . 137 Maximum Alert Level 1 | . 1 Low Security (%) 89 | 100 88 Level 1 10 | . 11 Level 2 . | . . Level 3 . | . . Level 4 . | . . Level 5 . | . . High Security . | . . Max Security . | . . Squads Dispatched 1 | . 1 Investigation . | . . Extermination . | . . Reinforcement 1 | . 1 Assault . | . . Garrison . | . . Intercept . | . . Searches Triggered . | . . Construction Impeded . | . . Haulers Reinforced . | . . Active Scanning Responses . | . . Cargo Convoy Interrupts . | . . Stealth | -11 -10 --------- Run | Yrd Mat Distress Signals 2 | . 2 Communications Jammed . | . . Distress Signals . | . . Times Spotted 15 | . 15 Peak Tracking Total 5 | . 5 Tactical Retreats . | . . Traps | -11 -10 ------- Run | Yrd Mat Traps Triggered 1 | . 1 Indirectly . | . . Trap Hack Attempts . | . . Triggered . | . . Disarmed . | . . Reprogrammed . | . . Reused . | . . Traps Extracted . | . . Installed . | . . Triggered . | . . Machines | -11 -10 ---------- Run | Yrd Mat Machines Disabled 2 | . 2 Max in Single Turn 2 | . 2 Machines Repaired . | . . Machines Dismantled . | . . Machines Sabotaged . | . . Overloaded Fab Kills . | . . Hacking | -11 -10 --------- Run | Yrd Mat Machines Accessed 1 | . 1 Terminals . | . . Fabricators . | . . Repair Stations 1 | . 1 Recycling Units . | . . Scanalyzers . | . . Garrison Access . | . . Total Hacks 4 | . 4 Successful 4 | . 4 Failed . | . . Catastrophic . | . . Database Lockouts . | . . Manual . | . . Terminals . | . . Fabricators . | . . Repair Stations 4 | . 4 Recycling Units . | . . Scanalyzers . | . . Garrison Access . | . . Terminal Hacks . | . . Fabricator Hacks . | . . Repair Station Hacks 4 | . 4 Scan Component 2 | . 2 Repair 2 | . 2 Recycling Unit Hacks . | . . Scanalyzer . | . . Garrison Access Hacks . | . . Unauthorized Hacks . | . . Terminals . | . . Fabricators . | . . Repair Stations . | . . Recycling Units . | . . Scanalyzers . | . . Garrison Access . | . . Data Cores Recovered 1 | . 1 Used . | . . Hacking Detections 1 | . 1 Full Trace Events . | . . Feedback Events . | . . Feedback Blocked . | . . Robot Schematics Acquired . | . . Robots Built . | . . Authchips . | . . Time . | . . Total Robot Build Rating . | . . Part Schematics Acquired . | . . Parts Built . | . . Authchips . | . . Time . | . . Total Part Build Rating . | . . Parts Repaired 2 | . 2 Time 52 | . 52 Parts Recycled . | . . Recycled Matter . | . . Retrieved Matter . | . . Retrieved Components . | . . Parts Scanalyzed . | . . Part Schematics Acquired . | . . Parts Damaged . | . . Bothacking | -11 -10 ------------ Run | Yrd Mat Used RIF Installer . | . . Robots Hacked . | . . Non-combat . | . . Combat . | . . Robot Hacks Applied . | . . Relay Couplers Released . | . . Fabnet Peak Effective % . | . . Robots Rewired . | . . Allies Hacked . | . . Hacks Repelled . | . . Allies | -11 -10 -------- Run | Yrd Mat Total Allies . | . . Largest Group . | . . Highest-Rated Group . | . . Highest-Rated Ally . | . . Total Orders . | . . Ally Attacks . | . . Total Damage . | . . Kills . | . . Allies Corrupted . | . . Allies Melted . | . . Intel | -11 -10 ------- Run | Yrd Mat Robot Analysis Total . | . . Derelict Logs Recovered . | . . Drone Launches . | . . Drone Recoveries . | . . Exploration | -11 -10 ------------- Run | Yrd Mat Turns Passed 819 | 118 701 Spaces Moved 430 | 70 360 Core 11 | 9 2 Treads 419 | 61 358 Legs . | . . Wheels . | . . Hover . | . . Flight . | . . Fastest Speed 50 | 50 160 Average Speed 159 | 145 161 Slowest Speed 450 | 160 450 Overloaded Moves . | . . Propulsion Burnouts . | . . Robots Hopped . | . . Cave-ins Triggered . | . . Exploration Rate (%) 36 | 5 68 Regions Visited 1 Branch Regions . Pre-discovered Areas . | . . Known Exits Taken . | . . Unknown Exits Taken 1 | 1 . Scrap Searched . | . . Spaces Dug . | . . Terrain Destroyed 44 | . 44 Melee . | . . Projectile . | . . AOE 44 | . 44 Terrain Rammed . | . . Walls Destroyed . | . . Machines Disabled . | . . Actions | -11 -10 --------- Run | Yrd Mat Total 519 | 86 433 Wait 26 | 5 21 Move 429 | 69 360 Hop . | . . Pick Up 16 | 6 10 Fast Attach . | . . Attach 13 | 6 7 Detach . | . . Swap 1 | . 1 Drop . | . . Fire 33 | . 33 Melee . | . . Ram . | . . Kick . | . . Crush 1 | . 1 Escape Stasis . | . . Rewire . | . . Trap . | . . Miscellaneous . | . . Route ------- -11/Scrapyard -10/Materials (discovered 4 exits: [*Mat x3] / [*Min]) History --------- Turn | Location | Event 4 | -11/Scrapyard | Discovered new exit (range 15) 119 | -11/Scrapyard | Entered Materials 192 | -10/Materials | Core integrity fell below 50% 201 | -10/Materials | Discovered new exit (range 12) 279 | -10/Materials | Repaired EM Pulse Gun 305 | -10/Materials | Repaired Lgt. Treads 308 | -10/Materials | Build established: Mutant 421 | -10/Materials | Discovered new exit (range 11) 599 | -10/Materials | Discovered new exit (range 11) 687 | -10/Materials | Discovered new exit (range 8) 744 | -10/Materials | Core integrity fell below 20% 811 | -10/Materials | Lost 5 parts (1p2n1u1w) 820 | -10/Materials | Destroyed by G-34 Mercenary with Small Laser Last Messages --------------- W-16 Scout destroyed. K-01 Serf collects debris. Acquired 4 matter. K-01 Serf collects debris. K-01 Serf cleans the Pressure Siphon. W-16 Scout sends out distress signal. K-01 Serf cleans the Pressure Siphon. K-01 Serf destroyed. R-06 Scavenger collects Lgt. Ion Engine. R-06 Scavenger collects Hover Unit. Lgt. Treads destroyed. U-05 Engineer destroyed. Lgt. Treads destroyed. Sml. Battery destroyed. Lgt. Ion Engine destroyed. Lgt. Assault Rifle destroyed. Acquired 9 matter. Critical hit (Burn: +37). Acquired Lgt. Cannon. G-47 Trooper knocked back. Map ----- +----------------------------------------------------+ | ????????# < #???????????????????????????????????? | | ????????# #???????????????????????????????????? | | ????????+ #???????????????????????????????????? | | ????????# #???????????????????????????????????? | | ????????# #???????????????????????????????????? | | ######### #?????#######???????????????????????? | | ####### #???????????????????????? | | #???????????????????????? | | """ #???????????????????????? | | """" "Y" #???????????????????????? | | """" ####### ! #???????????????????????? | | """" ######### ##???????????????????????? | | % ## # #????????????????????????? | | ## # #????????????????????????? | | """" ## + #????????????????????????? | | """" ## # #????????????????????????? | | """" ## # #????????????????????????? | | + # #???????????? ??????????? | | ######### #???????????# ??????????? | | #+####### #???????# #???????????# ??????????? | | ????????#^ #???????# #???????????# #?????????? | | ????????# #???????# ############# #?????????? | | ????????# #???????# # ! ## #?????????? | | ????????# #???????# # """ ""## #?????????? | | ????????# #???????# # """ T"## #?????????? | | ????????# #???????# #@ """ ""## #?????????? | | ????????# #???????# # %! ## #?????????? | | ????????# ######??# # g ## #?????????? | | ????????# # # ####g######## ########### | | ######?# # | | < # | | #####??# # | | ????????#####" "### ## """" !! #### #### | | ????????????#" !"! "??# ## """" !!! #?# #??? | | ????????????#"""""""### ## ! """" !! #?##?#??? | | ??????????########## #+## * ! #???????? | | ?????????? ! # = #???????? | | ??????????? !! # ""#???????? | | ?????????? """ """ #% # ! T"#???????? | | ?????????# """ """ + !+% !! ""#???????? | | ?????????# """ """ # |#* #???????? | | ?????????# # #???????? | | ?????????# ! ###"""T"""# #???????? | | ?????????# ######### #???????? | | ##############+##### #???????# #???????? | | + #???????# ??????? | | %# #???????# ????? | | # #???????# """ ???? | | ############# ??? """ #??? | | ????????????# ? """ ##??? | +----------------------------------------------------+ Best States ------------- Heat Dissipation 25 Energy Generation 10 Energy Capacity 225 Matter Stores 300 Matter Capacity 300 Sight Range 16 Terrain Scan Density 10 Evasion (%) 50 Recoil Reduction 2 Item Schematics ----------------- None Robot Schematics ------------------ None Fabricated ------------ Nothing Alien Tech Used ----------------- None Achievements -------------- Part-time Mechanic Challenges ------------ None Game ------ Seed CooledGhostSword Manual? 0 Play Time 00:11:28 Cumulative 4.7 hours Start 2024.04.02 @ 20:14:11 End 2024.04.02 @ 21:19:02 Sessions 1 Manual Loads 0 Difficulty Rogue Special Mode None Game No. 11 Rogue 11 Adventurer 0 Explorer 0 Win Type - Total 0 Types 0/0/0/0/0/0/0/0/0 Lore% 3 Gallery% 10 Achievement% 9 Wizard Run 0 Options --------- Layout 1 ASCII 0 Keyboard 0 Movement Mouse Keybinds 0 Fullscreen 1 Font 24/Smallcaps Map View 50x35 Zoom Use 0% Tactical HUD 0 Map Filters NONE Filters NONE Steam 1 RUN: 6b5cbd40-3ba2-4b8d-aac2-df021b39fab0